[Event "US Masters 2024"]
[Site "Charlotte"]
[Date "2024.11.29"]
[Round "3.11"]
[White "Cordova, Emilio"]
[Black "Park, Evan"]
[Result "0-1"]
[ECO "A34"]
[WhiteElo "2525"]
[BlackElo "2375"]
[Annotator "RC"]
[PlyCount "126"]
[EventDate "2024.09.23"]
[EventType "swiss"]
[EventCountry "USA"]
[SourceTitle "playchess.com"]
[Source "ChessBase"]
[SourceQuality "1"]
[TimeControl "5400+30"]

1. Nf3 {[%emt 0:00:22]} d5 {[%emt 0:00:05]} 2. g3 {[%emt 0:00:24]} Nf6 {[%emt 0:00:09]} 3. Bg2 {[%emt 0:00:12]} c5 {[%emt 0:00:04]} 4. c4 {[%emt 0:01:02]} Nc6 {[%emt 0:01:45]} 5. cxd5 {[%emt 0:05:37]} Nxd5 {[%emt 0:00:05]} 6. Nc3 {[%emt 0:00:05]} Nc7 {[%emt 0:01:30]} 7. b3 {[%emt 0:00:57]} e5 {[%emt 0:02:16]} 8. Bb2 {[%emt 0:00:07]} Be7 {[%emt 0:01:29]} 9. Rc1 {[%emt 0:00:14]} f6 {[%emt 0:03:21]} 10. O-O {[%emt 0:00:23]} O-O {[%emt 0:00:11]} 11. Ne1 {[%emt 0:05:28]} Bd7 {[%emt 0:07:05]} 12. a3 {[%emt 0:01:26]} Be6 {[%emt 0:01:57]} 13. Ba1 {[%emt 0:04:49]} Qd7 {[%emt 0:02:16]} 14. d3 {[%emt 0:05:39]} Rad8 {[%emt 0:03:07]} 15. Ne4 {[%emt 0:03:20]} b6 {[%emt 0:05:15]} 16. Nf3 {[%emt 0:08:31]} Nb5 {[%emt 0:01:38]} 17. Bb2 {[%emt 0:05:06]} Nbd4 {[%emt 0:02:19]} 18. Nxd4 {[%emt 0:55:48]} Nxd4 {[%emt 0:00:34]} 19. Nd2 {[%emt 0:00:00]} Kh8 {[%emt 0:03:40]} 20. Ba1 {[%emt 0:00:00]} Bg4 {[%emt 0:02:59]} 21. Re1 {[%emt 0:00:00]} Qe6 {[%emt 0:10:25]} 22. Rb1 {[%emt 0:00:00]} a5 {[%emt 0:06:05]} 23. f3 {[%emt 0:00:00]} Bh5 {[%emt 0:01:26]} 24. Qc1 {[%emt 0:00:00]} f5 {[%emt 0:01:20]} 25. e3 {[%emt 0:00:00]} Nc6 {[%emt 0:00:30]} 26. Qc2 {[%emt 0:00:00]} Bf6 {[%emt 0:09:08]} 27. Rbc1 {[%emt 0:00:00]} Rd7 {[%emt 0:10:53]} 28. Nc4 {[%emt 0:00:00]} b5 {[%emt 0:00:30]} 29. Nb2 {[%emt 0:00:00]} Be7 {[%emt 0:00:21]} 30. Nd1 {[%emt 0:00:00]} Bf7 {[%emt 0:06:38]} 31. f4 {[%emt 0:00:00]} exf4 {[%emt 0:03:02]} 32. Qc3 {[%emt 0:00:00]} Bf6 {[%emt 0:02:11]} 33. Qxc5 {[%emt 0:00:00]} Ne7 {[%emt 0:02:28]} 34. Bxf6 {[%emt 0:00:00]} gxf6 {[%emt 0:00:39]} 35. Qxb5 {[%emt 0:00:00]} fxg3 {[%emt 0:00:03]} 36. hxg3 {[%emt 0:00:00]} Qd6 {[%emt 0:00:39]} 37. Rf1 {[%emt 0:00:00]} Rb8 {[%emt 0:01:21]} 38. Qxa5 {[%emt 0:00:16]} Qxg3 {[%emt 0:00:32]} 39. Rf3 {[%emt 0:07:17]} Qg5 {[%emt 0:00:17]} 40. Rc2 {[%emt 0:02:11]} Bxb3 {[%emt 0:01:30]} 41. Rd2 {[%emt 0:01:05]} Rg8 {[%emt 0:09:17]} 42. Nb2 {[%emt 0:00:26]} Bd5 {[%emt 0:00:00]} 43. e4 {[%emt 0:00:13]} Nc6 {[%emt 0:00:00]} 44. Qc3 {[%emt 0:00:06]} Bxe4 {[%emt 0:00:00]} 45. Rff2 {[%emt 0:00:13]} Ne5 {[%emt 0:00:00]} 46. Kf1 {[%emt 0:01:18]} Bxg2+ {[%emt 0:00:00]} 47. Rxg2 {[%emt 0:00:03]} Ng4 {[%emt 0:00:00]} 48. Nc4 {[%emt 0:00:06]} Qh4 {[%emt 0:00:00]} 49. Ke2 {[%emt 0:01:02]} f4 {[%emt 0:01:22]} 50. Kd1 {[%emt 0:00:41]} f3 {[%emt 0:00:22]} 51. Rxg4 {[%emt 0:00:05]} Rxg4 {[%emt 0:00:31]} 52. Ne3 {[%emt 0:00:48]} Rg8 {[%emt 0:02:20]} 53. Qc6 {[%emt 0:00:20]} Qd4 {[%emt 0:00:42]} 54. Qxf3 {[%emt 0:00:11]} Rdg7 {[%emt 0:00:13]} 55. Nc4 {[%emt 0:00:23]} Rg3 {[%emt 0:00:25]} 56. Qf5 {[%emt 0:00:15]} R3g5 {[%emt 0:00:48]} 57. Qf3 {[%emt 0:00:10]} Rg3 {[%emt 0:00:32]} 58. Qf5 {[%emt 0:00:03]} Qa1+ {[%emt 0:00:37]} 59. Kc2 {[%emt 0:00:09]} Rb8 {[%emt 0:00:29]} 60. Qf4 {[%emt 0:00:53]} Qb1+ {[%emt 0:00:14]} 61. Kc3 {[%emt 0:00:04]} Qb3+ {[%emt 0:00:38]} 62. Kd4 {[%emt 0:00:08]} Rd8+ {[%emt 0:00:23]} 63. Nd6 {[%emt 0:01:34]} Qa4+ {[%emt 0:00:09]} 0-1

[Event "US Masters 2024"]
[Site "Charlotte"]
[Date "2024.11.29"]
[Round "3.12"]
[White "Repka, Christopher"]
[Black "Sinha, Sahil"]
[Result "1/2-1/2"]
[ECO "E17"]
[WhiteElo "2520"]
[BlackElo "2346"]
[Annotator "TA"]
[PlyCount "95"]
[EventDate "2024.09.23"]
[EventType "swiss"]
[EventCountry "USA"]
[SourceTitle "playchess.com"]
[Source "ChessBase"]
[SourceQuality "1"]
[TimeControl "5400+30"]

{[%evp 46,95,39,32,60,50,31,0,66,-64,-55,-59,-66,-167,-165,-151,-165,-142,-145,-247,-52,-45,-47,-47,0,0,0,0,0,0,0,0,0,0,0,-548,0,0,0,0,0,0,0,0,0,0,0,0,0,0,0,0]} 1. Nf3 {[%emt 0:00:15]} Nf6 {[%emt 0:00:12]} 2. c4 {[%emt 0:00:10]} e6 {[%emt 0:00:31]} 3. g3 {[%emt 0:00:03]} b6 {[%emt 0:01:14]} 4. Bg2 {[%emt 0:00:03]} Bb7 {[%emt 0:00:04]} 5. O-O {[%emt 0:00:06]} Be7 {[%emt 0:00:40]} 6. d4 {[%emt 0:00:28]} O-O {[%emt 0:00:18]} 7. Re1 {[%emt 0:00:02]} d5 {[%emt 0:00:44]} 8. cxd5 {[%emt 0:00:04]} exd5 {[%emt 0:00:10]} 9. Nc3 {[%emt 0:00:05]} Nbd7 {[%emt 0:02:24]} 10. Bf4 {[%emt 0:01:20]} c5 {[%emt 0:01:37]} 11. h4 {[%emt 0:00:07] 11.Rc1 is becoming the main line. E17: Queen's Indian: 4 g3 Bb7 5 Bg2 Be7.} h6 {[%emt 0:05:35]} 12. Rc1 {[%emt 0:00:04]} Ne4 {[%emt 0:00:23]} 13. e3 {[%emt 0:02:43]} Nxc3 $146 {[%emt 1:23:08]} ({Predecessor:} 13... Ndf6 14. a4 Rc8 15. Bh3 Nxc3 16. bxc3 Rc6 17. Bg2 cxd4 18. Nxd4 Rc4 19. Bf1 Rc5 {½-½ Tleptsok,R (2571)-Schilcher,A (2567) Vinchev Memorial 3nd email 2020}) 14. Rxc3 {[%emt 0:10:19]} c4 {[%emt 0:00:00]} 15. Nd2 {[%emt 0:00:26]} b5 {[%emt 0:00:00]} 16. e4 {[%emt 0:00:40]} Bb4 {[%emt 0:00:00]} 17. e5 {[%emt 0:19:46]} Bxc3 {[%emt 0:00:00]} 18. bxc3 {[%emt 0:02:05]} Nb6 {[%emt 0:00:00]} 19. Qb1 {[%emt 0:33:51]} a6 {[%emt 0:00:00]} 20. Nf1 {[%emt 0:03:00]} Bc8 {[%emt 0:00:00]} 21. Bc1 {[%emt 0:01:03]} Re8 {[%emt 0:00:00]} 22. Ne3 {[%emt 0:01:20]} Qd7 {[%emt 0:00:00]} 23. f4 {[%emt 0:07:49]} a5 {[%emt 0:00:00]} 24. Bd2 {[%emt 0:01:27]} Rb8 {[%emt 0:00:00]} 25. f5 {[%emt 0:00:11]} b4 $1 {[%emt 0:00:00]} 26. cxb4 {[%emt 0:00:09]} Na4 {[%emt 0:00:00]} (26... c3 $11 27. Bxc3 Ba6) 27. Qc2 {[%emt 0:14:01]} (27. Bxd5 c3 28. e6 fxe6 29. fxe6 (29. Bxe6+ Rxe6 30. fxe6 Qxe6 $11) 29... Rxe6 30. Bxe6+ Qxe6 $11) ({White should play} 27. Nxd5 $14 axb4 28. e6 (28. Bxb4 Bb7 $11)) 27... axb4 $15 {[%emt 0:00:00]} 28. Bxd5 {[%emt 0:00:06]} c3 {[%emt 0:00:00]} 29. Bc1 {[%emt 0:00:01]} (29. e6 $15 fxe6 (29... cxd2 30. exf7+ Kf8 31. fxe8=Q+ Qxe8 32. Qxd2 $18) 30. fxe6 Rxe6 (30... cxd2 31. exd7+ Kf8 32. Qf5+ Ke7 33. Qf7+ Kd8 34. dxe8=Q#) 31. Bxe6+ Qxe6 32. Ng2) 29... Nb6 $1 $19 {[%emt 0:00:00]} 30. e6 {[%emt 0:00:30]} fxe6 {[%emt 0:00:00]} 31. fxe6 {[%emt 0:00:03]} Rxe6 {[%emt 0:00:00]} 32. Bb3 {[%emt 0:00:07] [#]} (32. Bxe6+ $17 {was forced.} Qxe6 33. a3) 32... Kh8 $2 {[%emt 0:00:06]} (32... Qxd4 33. Rd1 Qe5 (33... Qf6 $2 34. Ng4 $18) 34. Qg6 $18) (32... Bb7 $1 $19 33. Re2 Rf8 34. Bxe6+ Qxe6) 33. Bxe6 $15 {[%emt 0:00:30]} Qxe6 {[%emt 0:00:01]} 34. Ng2 $1 {[%emt 0:00:01]} Qd7 {[%emt 0:01:48]} (34... Qc6 $15 {is superior.} 35. Nf4 Kg8) 35. Qg6 {[%emt 0:04:26]} Qxd4+ {[%emt 0:02:28]} 36. Kh2 {[%emt 0:00:12]} Bb7 {[%emt 0:01:28]} 37. Bxh6 $1 {[%emt 0:00:37]} Qf6 $1 {[%emt 0:03:02]} (37... gxh6 38. Re7) 38. Bxg7+ {[%emt 0:00:45]} Qxg7 {[%emt 0:00:02]} 39. Qh5+ {[%emt 0:00:02]} Kg8 {[%emt 0:00:04]} 40. Nf4 $2 {[%emt 0:00:59][%mdl 8192] [#]} (40. Re8+ $1 $11 {and White stays safe.} Rxe8 41. Qxe8+ Qf8 (41... Kh7 42. Qh5+ Kg8 43. Qe8+ Qf8 44. Qg6+ Kh8 45. Qh5+ Kg7 46. Qg5+ Kf7 47. Qf5+ Ke8 48. Qb5+ Nd7 49. Qxb7 $17) 42. Qg6+ Kh8 43. Qxb6 Bxg2 44. Qd4+ Qg7 45. Qd8+ (45. Qxg7+ Kxg7 46. Kxg2 c2 47. h5 c1=Q 48. g4 Qd2+ 49. Kf3 Qxa2 50. g5 b3 51. h6+ Kg6 52. h7 Kxh7 53. Kf4 b2 54. Kf3 b1=Q 55. Ke3 Qe6+ 56. Kf2 Qef5+ 57. Ke2 Qbf1+ 58. Ke3 Q5f4#) 45... Qg8 46. Qd4+ Kh7 47. Kxg2) 40... Rf8 $2 {[%emt 0:00:35]} (40... Nd7 $1 $19 41. Qb5 Bf3) 41. Re8 $11 {[%emt 0:00:25]} c2 {[%emt 0:02:47]} (41... Nd7 $5 42. Ne6 $8 c2 43. Nxf8 Nxf8 $11 (43... c1=R 44. Nxd7+)) 42. Rxf8+ $1 {[%emt 0:01:09]} Qxf8 {[%emt 0:00:19]} 43. Qg6+ {[%emt 0:00:00]} Qg7 {[%emt 0:00:20]} 44. Qe8+ {[%emt 0:00:00]} Kh7 {[%emt 0:00:15]} (44... Qf8 $5 45. Qg6+ $8 Kh8 (45... Qg7 46. Qe8+ Kh7 47. Qh5+ Kg8 48. Qe8+ $11) 46. Qh5+ Kg8 47. Qg6+ $11) 45. Qh5+ {[%emt 0:00:00]} Kg8 {[%emt 0:00:09]} (45... Qh6 $5 46. Qf7+ $8 Qg7 47. Qh5+ Qh6 (47... Kg8 48. Qe8+ Qf8 49. Qg6+ Qg7 50. Qe8+ $11) 48. Qf7+ Kh8 49. Qe8+ Kg7 50. Qe7+ Kg8 51. Qe8+ Kg7 52. Qe7+ Kg8 53. Qe8+ Kg7 $11) 46. Qe8+ {[%emt 0:00:00]} Kh7 {[%emt 0:00:02]} (46... Qf8 $5 47. Qg6+ $8 Kh8 (47... Qg7 48. Qe8+ $11) 48. Qh5+ Kg8 49. Qg6+ $11) 47. Qh5+ {[%emt 0:00:06]} Kg8 {[%emt 0:00:05]} (47... Qh6 $5 48. Qf7+ $8 Qg7 49. Qh5+ $11) 48. Qe8+ {[%emt 0:00:14]} 1/2-1/2

[Event "US Masters 2024"]
[Site "Charlotte"]
[Date "2024.11.29"]
[Round "3.13"]
[White "Aarav Dengla"]
[Black "Moradiabadi, Elshan"]
[Result "0-1"]
[ECO "C55"]
[WhiteElo "2390"]
[BlackElo "2515"]
[Annotator "TA"]
[PlyCount "92"]
[EventDate "2024.09.23"]
[EventType "swiss"]
[EventCountry "USA"]
[SourceTitle "playchess.com"]
[Source "ChessBase"]
[SourceQuality "1"]
[TimeControl "5400+30"]

{[%evp 9,92,20,28,24,28,27,31,12,19,16,20,0,0,-31,13,20,17,20,9,-24,-26,-30,-24,-37,-15,-20,-6,-1,0,-19,-13,-11,-9,-21,0,-9,0,0,-10,-58,-44,-89,-71,-70,-81,-131,-132,-132,-136,-113,-125,-126,-121,-295,-277,-473,-475,-517,-487,-796,-827,-935,-1183,-1291,-1127,-1129,-1131,-1520,-1479,-5743,-6536,-29959,-29951,-29963,-29968,-29968,-29970,-29977,-29978,-29977,-29978,-29978,-29979,-29979,-29979]} 1. e4 {[%emt 0:00:12]} e5 {[%emt 0:06:11]} 2. Nf3 {[%emt 0:00:23]} Nc6 {[%emt 0:00:01]} 3. Bc4 {[%emt 0:00:11]} Nf6 {[%emt 0:00:04]} 4. d3 {[%emt 0:00:11]} h6 {[%emt 0:00:03]} 5. O-O {[%emt 0:00:34]} a6 {[%emt 0:00:03]} 6. a4 {[%emt 0:04:07]} d6 {[%emt 0:00:15]} 7. Nc3 {[%emt 0:00:51]} g5 {[%emt 0:06:40]} 8. a5 {[%emt 0:05:01] White is slightly better.} Bg7 {[%emt 0:02:54]} 9. Be3 {[%emt 0:07:01]} Be6 {[%emt 0:11:01]} 10. Bxe6 {[%emt 0:14:05]} fxe6 {[%emt 0:00:01]} 11. d4 {[%emt 0:00:06]} exd4 {[%emt 0:00:06]} 12. Nxd4 {[%emt 0:00:05]} Qd7 {[%emt 0:00:08]} 13. Nxc6 {[%emt 0:19:38]} Qxc6 {[%emt 0:00:14]} 14. Qd3 {[%emt 0:01:29][%cal Oe4e5]} Ng4 {[%emt 0:01:50]} 15. Bd4 {[%emt 0:00:53]} Ne5 {[%emt 0:00:05]} 16. Qh3 {[%emt 0:01:17]} Qd7 {[%emt 0:02:08]} 17. Qh5+ {[%emt 0:01:16]} Qf7 {[%emt 0:00:28]} 18. Qxf7+ {[%emt 0:00:35]} Kxf7 {[%emt 0:00:02]} 19. Bxe5 {[%emt 0:01:50]} Bxe5 {[%emt 0:00:06]} 20. Ne2 {[%emt 0:00:24]} Ke7 {[%emt 0:05:05]} 21. c3 {[%emt 0:03:24]} Rhf8 {[%emt 0:02:20]} 22. Nc1 {[%emt 0:00:40]} c5 {[%emt 0:03:37]} 23. Nd3 {[%emt 0:07:45]} Bg7 {[%emt 0:00:21]} 24. c4 {[%emt 0:01:53]} (24. Ra3 $11) 24... Bd4 {[%emt 0:00:36]} 25. Rab1 {[%emt 0:00:01]} b5 {[%emt 0:10:20]} 26. axb6 {[%emt 0:01:58]} Rfb8 {[%emt 0:02:15]} 27. Ra1 {[%emt 0:00:56]} ({White should play} 27. b4) 27... Rxb6 $17 {[%emt 0:00:20]} 28. Ra2 {[%emt 0:00:01]} Rb3 {[%emt 0:06:28]} 29. Rd1 {[%emt 0:00:09]} a5 $36 {[%emt 0:00:04][%mdl 2048] Black has strong initiative.} 30. Rd2 {[%emt 0:12:44]} a4 {[%emt 0:00:46] [#] Hoping for ...a3. Black has more active pieces.} 31. Nc1 $2 {[%emt 0:00:04] White does not recover from this.} (31. Kf1 $17) 31... Rb4 $19 {[%emt 0:00:22]} 32. Rc2 $2 {[%emt 0:00:06]} (32. h4 {keeps fighting.}) 32... Rab8 {[%emt 0:01:04][%cal Rb4b2]} 33. Kf1 {[%emt 0:06:10]} Rxb2 {[%emt 0:00:57]} 34. Rcxb2 {[%emt 0:02:25]} (34. Ke2 $142) 34... Rxb2 {[%emt 0:00:02]} 35. Rxb2 {[%emt 0:00:04]} Bxb2 {[%emt 0:00:05][%mdl 4096] Endgame. KB-KN} 36. Na2 {[%emt 0:00:06]} Kf6 {[%emt 0:01:20]} 37. Ke2 {[%emt 0:00:50]} Ke5 {[%emt 0:00:03]} 38. Kd3 {[%emt 0:00:05]} g4 {[%emt 0:00:12]} 39. f3 {[%emt 0:00:46]} gxf3 {[%emt 0:00:29]} 40. gxf3 {[%emt 0:00:02]} Kf4 {[%emt 0:00:05] Black mates.} 41. Ke2 {[%emt 0:00:05]} h5 {[%emt 0:00:08]} 42. Kf2 {[%emt 0:00:24]} h4 {[%emt 0:00:05]} 43. Ke2 {[%emt 0:00:33]} h3 {[%emt 0:00:06]} 44. Kf2 {[%emt 0:00:44]} Bd4+ {[%emt 0:01:02]} 45. Ke2 {[%emt 0:00:50]} Bg1 {[%emt 0:00:06]} 46. Nc3 {[%emt 0:00:04]} a3 {[%emt 0:00:06] Weighted Error Value: White=0.54/Black=0.03 (flawless) .  Loses game:     	White=1     	---        Mistake:       	White=4     	---        Inaccurate:     	White=3     	Black=1      OK:         	White=11    	Black=8      Best:        	White=1     	Black=5} 0-1

[Event "US Masters 2024"]
[Site "Charlotte"]
[Date "2024.11.29"]
[Round "3.14"]
[White "Sheehan, Ethan"]
[Black "Mitrabha, Guha"]
[Result "0-1"]
[ECO "A47"]
[WhiteElo "2331"]
[BlackElo "2511"]
[Annotator "RC"]
[PlyCount "186"]
[EventDate "2024.09.23"]
[EventType "swiss"]
[EventCountry "USA"]
[SourceTitle "playchess.com"]
[Source "ChessBase"]
[SourceQuality "1"]
[TimeControl "5400+30"]

1. d4 {[%emt 0:00:01]} Nf6 {[%emt 0:00:27]} 2. Nf3 {[%emt 0:00:04]} e6 {[%emt 0:00:28]} 3. Bf4 {[%emt 0:00:05]} b6 {[%emt 0:02:32]} 4. e3 {[%emt 0:00:08]} Bb7 {[%emt 0:00:04]} 5. Nbd2 {[%emt 0:00:08]} Be7 {[%emt 0:00:56]} 6. h3 {[%emt 0:00:34]} O-O {[%emt 0:00:11]} 7. Bd3 {[%emt 0:00:03]} c5 {[%emt 0:00:05]} 8. O-O {[%emt 0:00:06]} cxd4 {[%emt 0:02:00]} 9. exd4 {[%emt 0:00:12]} d6 {[%emt 0:00:05]} 10. Bg3 {[%emt 0:00:29]} Re8 {[%emt 0:01:52]} 11. Re1 {[%emt 0:00:17]} Nbd7 {[%emt 0:00:23]} 12. c3 {[%emt 0:00:11]} a6 {[%emt 0:00:43]} 13. a4 {[%emt 0:01:25]} Qc7 {[%emt 0:00:38]} 14. Nc4 {[%emt 0:02:31]} Bc6 {[%emt 0:04:44]} 15. Nfd2 {[%emt 0:01:14]} b5 {[%emt 0:00:41]} 16. axb5 {[%emt 0:01:38]} axb5 {[%emt 0:00:26]} 17. Rxa8 {[%emt 0:00:02]} Rxa8 {[%emt 0:00:06]} 18. Ne3 {[%emt 0:00:09]} Bf8 {[%emt 0:01:04]} 19. Qc2 {[%emt 0:02:19]} Qb7 {[%emt 0:00:25]} 20. f3 {[%emt 0:00:44]} h6 {[%emt 0:04:37]} 21. Ne4 {[%emt 0:01:20]} Ne8 {[%emt 0:00:10]} 22. b4 {[%emt 0:03:13]} Nb6 {[%emt 0:03:07]} 23. Nd2 {[%emt 0:00:58]} Nd5 {[%emt 0:00:54]} 24. Nb3 {[%emt 0:01:12]} Nxe3 {[%emt 0:07:35]} 25. Rxe3 {[%emt 0:02:16]} Qb6 {[%emt 0:00:34]} 26. Na5 {[%emt 0:01:15]} Bd7 {[%emt 0:02:37]} 27. Bf2 {[%emt 0:01:07]} Nf6 {[%emt 0:00:26]} 28. Re1 {[%emt 0:02:29]} Qc7 {[%emt 0:00:29]} 29. Qd2 {[%emt 0:01:44]} Rc8 {[%emt 0:04:21]} 30. Rc1 {[%emt 0:00:59]} Nd5 {[%emt 0:00:28]} 31. Rc2 {[%emt 0:02:36]} Be7 {[%emt 0:02:07]} 32. h4 {[%emt 0:02:13]} Qb8 {[%emt 0:00:42]} 33. Kh1 {[%emt 0:05:53]} Bd8 {[%emt 0:00:34]} 34. Bg3 {[%emt 0:02:31]} Qb6 {[%emt 0:03:25]} 35. Be4 {[%emt 0:02:36]} Nf6 {[%emt 0:01:05]} 36. Bd3 {[%emt 0:01:54]} Be7 {[%emt 0:00:13]} 37. Qe1 {[%emt 0:04:24]} Qd8 {[%emt 0:01:06]} 38. Bf2 {[%emt 0:05:53]} Nd5 {[%emt 0:02:00]} 39. Be4 {[%emt 0:01:07]} Nf6 {[%emt 0:00:46]} 40. Bd3 {[%emt 0:02:06]} Rc7 {[%emt 0:00:06]} 41. Qd2 {[%emt 0:08:28]} Nd5 {[%emt 0:00:20]} 42. g3 {[%emt 0:00:08]} Rc8 {[%emt 0:00:36]} 43. Be4 {[%emt 0:00:16]} Nf6 {[%emt 0:00:16]} 44. Bd3 {[%emt 0:00:54]} Rb8 {[%emt 0:02:42]} 45. Kg2 {[%emt 0:00:25]} Qe8 {[%emt 0:01:43]} 46. Qe2 {[%emt 0:01:15]} Bd8 {[%emt 0:00:27]} 47. Be1 {[%emt 0:03:44]} Bb6 {[%emt 0:01:33]} 48. Bd2 {[%emt 0:00:54]} Ra8 {[%emt 0:03:34]} 49. Ra2 {[%emt 0:01:37]} e5 {[%emt 0:00:45]} 50. dxe5 {[%emt 0:01:06]} Qe6 {[%emt 0:00:46]} 51. g4 {[%emt 0:02:07]} Qxa2 {[%emt 0:01:07]} 52. exf6 {[%emt 0:00:01]} Re8 {[%emt 0:00:55]} 53. Qd1 {[%emt 0:00:20]} Be3 {[%emt 0:03:34]} 54. Bc2 {[%emt 0:00:17]} Qd5 {[%emt 0:06:39]} 55. Be1 {[%emt 0:01:50]} Qxd1 {[%emt 0:00:12]} 56. Bxd1 {[%emt 0:00:01]} gxf6 {[%emt 0:00:15]} 57. Nb7 {[%emt 0:03:41]} Bf4 {[%emt 0:00:51]} 58. Bf2 {[%emt 0:00:26]} Be5 {[%emt 0:02:17]} 59. Bb3 {[%emt 0:02:22]} Bc8 {[%emt 0:01:00]} 60. Bd5 {[%emt 0:00:14]} Bxb7 {[%emt 0:00:47]} 61. Bxb7 {[%emt 0:00:04]} Bxc3 {[%emt 0:00:54]} 62. Bc6 {[%emt 0:00:02]} Rb8 {[%emt 0:00:51]} 63. Ba7 {[%emt 0:00:01]} Rc8 {[%emt 0:00:08]} 64. Bxb5 {[%emt 0:00:05]} Bxb4 {[%emt 0:00:05]} 65. Bd4 {[%emt 0:00:03]} Rc2+ {[%emt 0:00:14]} 66. Kf1 {[%emt 0:00:27]} f5 {[%emt 0:00:27]} 67. Be3 {[%emt 0:02:15]} Bd2 {[%emt 0:00:54]} 68. Bd4 {[%emt 0:00:28]} fxg4 {[%emt 0:03:51]} 69. fxg4 {[%emt 0:00:03]} Bf4 {[%emt 0:00:11]} 70. Bd7 {[%emt 0:00:37]} d5 {[%emt 0:01:24]} 71. Bf5 {[%emt 0:00:08]} Rd2 {[%emt 0:00:04]} 72. Bc3 {[%emt 0:00:14]} Rh2 {[%emt 0:00:06]} 73. Bf6 {[%emt 0:00:06]} Bg3 {[%emt 0:00:25]} 74. h5 {[%emt 0:00:05]} Rf2+ {[%emt 0:00:14]} 75. Kg1 {[%emt 0:00:01]} Ra2 {[%emt 0:00:13]} 76. Kf1 {[%emt 0:02:10]} Rf2+ {[%emt 0:00:53]} 77. Kg1 {[%emt 0:00:01]} Rd2 {[%emt 0:00:01]} 78. Bc3 {[%emt 0:00:35]} Rd1+ {[%emt 0:00:23]} 79. Kg2 {[%emt 0:00:01]} Be1 {[%emt 0:00:27]} 80. Be5 {[%emt 0:00:56]} d4 {[%emt 0:00:18]} 81. g5 {[%emt 0:00:16]} Bd2 {[%emt 0:01:39]} 82. Bg4 {[%emt 0:03:25]} Re1 {[%emt 0:00:34]} 83. Bg3 {[%emt 0:00:17]} Ra1 {[%emt 0:00:28]} 84. g6 {[%emt 0:00:07]} f6 {[%emt 0:00:29]} 85. Bf5 {[%emt 0:00:29]} Bg5 {[%emt 0:00:17]} 86. Bf2 {[%emt 0:02:29]} Be3 {[%emt 0:00:17]} 87. Bg3 {[%emt 0:00:10]} Ra5 {[%emt 0:00:05]} 88. Be6+ {[%emt 0:00:47]} Kg7 {[%emt 0:00:05]} 89. Bg4 {[%emt 0:00:03]} d3 {[%emt 0:00:05]} 90. Kf3 {[%emt 0:00:10]} Bg5 {[%emt 0:00:10]} 91. Be6 {[%emt 0:00:35]} d2 {[%emt 0:00:06]} 92. Ke2 {[%emt 0:00:05]} Ra1 {[%emt 0:00:06]} 93. Bb3 {[%emt 0:00:05]} Ra3 {[%emt 0:00:02]} 0-1

[Event "US Masters 2024"]
[Site "Charlotte"]
[Date "2024.11.29"]
[Round "3.15"]
[White "Can, Isik"]
[Black "Han, Johnathan"]
[Result "1-0"]
[ECO "B90"]
[WhiteElo "2508"]
[BlackElo "2330"]
[Annotator "TA"]
[PlyCount "71"]
[EventDate "2024.09.23"]
[EventType "swiss"]
[EventCountry "USA"]
[SourceTitle "playchess.com"]
[Source "ChessBase"]
[SourceQuality "1"]
[TimeControl "5400+30"]

{[%evp 12,71,14,0,7,0,14,0,0,18,43,0,11,0,11,-4,24,22,20,29,0,0,8,-30,-32,-36,-27,-32,-41,-29,-19,-16,0,0,7,11,17,25,197,188,193,136,270,274,487,219,288,295,310,339,1210,1192,1185,550,1182,1185,1150,1150,1117,1121,952,919]} 1. e4 {[%emt 0:06:21]} c5 {[%emt 0:00:11]} 2. Nf3 {[%emt 0:00:05]} d6 {[%emt 0:00:07]} 3. d4 {[%emt 0:00:03]} cxd4 {[%emt 0:00:07]} 4. Nxd4 {[%emt 0:00:05]} Nf6 {[%emt 0:00:07]} 5. Nc3 {[%emt 0:00:03]} a6 {[%emt 0:00:06]} 6. h3 {[%emt 0:00:03]} e5 {[%emt 0:00:23]} 7. Nb3 {[%emt 0:00:04]} Be6 {[%emt 0:01:16]} 8. f4 {[%emt 0:00:34]} b5 {[%emt 0:02:07]} 9. Qf3 {[%emt 0:04:06]} Nc6 {[%emt 0:01:15] The position is equal.} 10. g4 {[%emt 0:00:02]} h6 {[%emt 0:01:29]} 11. Be3 {[%emt 0:10:54]} exf4 {[%emt 0:06:11]} 12. Bxf4 {[%emt 0:00:48]} Ne5 {[%emt 0:00:17]} 13. Qg2 {[%emt 0:01:20]} Rc8 {[%emt 0:00:46]} (13... Ng6 $5 14. Bh2 Rc8 $11) 14. O-O-O {[%emt 0:11:21]} Ng6 {[%emt 0:00:21]} 15. Bd2 {[%emt 0:02:00]} Be7 {[%emt 0:01:51]} 16. Nd5 {[%emt 0:02:20]} O-O {[%emt 0:20:44]} 17. Kb1 {[%emt 0:04:44]} Nh4 {[%emt 0:15:24]} 18. Nxf6+ {[%emt 0:03:46]} Bxf6 {[%emt 0:00:11]} 19. Qf2 {[%emt 0:00:09]} Ng6 {[%emt 0:02:28]} 20. Nd4 {[%emt 0:03:19]} Re8 {[%emt 0:04:13]} 21. Bd3 {[%emt 0:06:27]} Bc4 {[%emt 0:05:58]} 22. Nf5 {[%emt 0:03:34]} Bxd3 {[%emt 0:03:45]} 23. cxd3 {[%emt 0:01:28]} d5 {[%emt 0:00:15]} 24. Be3 {[%emt 0:06:25]} Re6 $2 {[%emt 0:12:44] This costs Black the game.} (24... dxe4 $6 25. dxe4 Qa5 26. Nxh6+ Kh7 27. Nxf7 $18) (24... Bh4 $1 $11 25. Qf3 Bg5) 25. h4 $18 {[%emt 0:01:14][%cal Og4g5]} dxe4 {[%emt 0:01:23] [#]} 26. g5 $1 {[%emt 0:04:09] dxe4 is the strong threat.} exd3 {[%emt 0:08:19]} (26... hxg5 $2 27. hxg5 Be5 28. d4 $18 (28. dxe4 Qc7 $18)) (26... Qd5 $16) 27. gxf6 {[%emt 0:00:40]} Rc2 $2 {[%emt 0:03:30] [#]} (27... Rxf6 28. Bd4 Qc7) 28. Rxd3 $3 {[%emt 0:09:59][%mdl 512]} Rxb2+ {[%emt 0:01:32]} (28... Qxd3 29. Qxc2) 29. Kxb2 {[%emt 0:00:03]} (29. Qxb2 Qxd3+ 30. Qc2 Rxe3 (30... Qxc2+ 31. Kxc2 Rxf6 32. Rf1 $16) 31. Nxe3 Qxe3 $11) 29... Qxd3 {[%emt 0:00:06]} 30. fxg7 {[%emt 0:01:52]} Ne5 $2 {[%emt 0:01:05]} (30... Rxe3 31. Nxh6+ (31. Nxe3 Qd4+ 32. Kb3 Qa4+ 33. Kc3 Qa3+ 34. Kd4 Qb4+ 35. Kd5 Ne7+ 36. Ke5 Ng6+ 37. Kd5 Ne7+ 38. Ke5 Ng6+ 39. Kd5 $11) (31. Qxe3 Qxf5 32. h5 Qf6+ 33. Qc3 Qxc3+ 34. Kxc3 Nf4 $18) 31... Kh7 32. g8=Q+ (32. g8=N $2 Re2+ $19) 32... Kxh6) 31. Rc1 {[%emt 0:00:15] Threatening mate with Rc8+. White is clearly winning.} (31. Bxh6 $2 Nc4+ 32. Kc1 Qa3+ (32... Re2 $2 33. Ne7+ Rxe7 34. Rd1 $19) 33. Kb1 Qb4+ 34. Kc1 Rc6 $19) (31. Nxh6+ Rxh6 32. Bxh6 Nc4+ 33. Kc1 Qc3+ 34. Qc2 (34. Kd1 $2 Nb2+ $19) 34... Qa1+ 35. Qb1 Qc3+ 36. Qc2 Qa1+ 37. Qb1 Qc3+ 38. Qc2 $11) 31... Kh7 {[%emt 0:04:49]} 32. g8=Q+ {[%emt 0:02:39]} Kxg8 {[%emt 0:00:04]} 33. Qg3+ {[%emt 0:00:20]} (33. Bxh6 Kh7 $18) 33... Ng6 {[%emt 0:00:13]} 34. Rc8+ {[%emt 0:00:09]} ({Inferior is} 34. Bxh6 Qxf5 35. Re1 Rxe1 36. Qxe1 Qf6+ 37. Qc3 Ne5 $17 (37... Qxh4 38. Qg7#) (37... Qxc3+ 38. Kxc3 Nxh4 39. Kb4 $15)) 34... Kh7 {[%emt 0:00:07] [#]} 35. Rh8+ $3 {[%emt 0:00:02][%mdl 512]} Kxh8 {[%emt 0:00:11]} 36. Bd4+ {[%emt 0:00:02] Weighted Error Value: White=0.51/Black=0.30.  Loses game:     	---       	Black=1      Mistake:       	White=1     	Black=3      Inaccurate:     	White=2     	Black=2      OK:         	White=9     	Black=8      Best:        	White=4     	Black=1      Strong:       	White=1     	---} (36. Bxh6 $2 {gets mated.} Re2+ (36... Qxf5 $2 37. Bd2 $19) (36... Qxf5 $2 37. Bd2 $19)) 1-0